bitfinex-derivatives/quotes_ETHF0:USTF0_20240915
["timestamp","ask_amount","ask_price","bid_price","bid_amount"]
[1726442826224,4.72374,2328.8,2328.7,1.77097463]
[1726442826429,0.42937,2328.6,2328.5,1.66477352]
[1726442826630,0.42937,2328.7,2328.5,3.43665538]
[1726442826931,0.42937,2328.7,2328.6,1.77188186]
[1726442827432,0.42937,2328.7,2328.6,1.77187402]
[1726442829327,1.07334,2328.9,2328.5,1.66477352]
[1726442829328,0.42937,2328.6,2328.5,1.66477352]
[1726442829519,0.42937,2328.6,2328.5,3.43697036]
[1726442830127,0.42937,2328.6,2328.5,3.43678595]
[1726442830336,0.42936,2328.7,2328.5,3.86617595]
[1726442830533,6.5578,2329.0,2328.5,3.86617595]
[1726442830726,0.42935,2328.8,2328.5,3.43678595]
[1726442830928,0.42935,2328.8,2328.5,3.86616595]
[1726442831537,0.42935,2328.8,2328.6,1.77201243]
[1726442831935,0.42935,2328.7,2328.6,1.77201243]
[1726442833437,0.42932,2328.9,2328.6,1.77201243]
[1726442833634,0.42932,2328.9,2328.7,0.42935]
[1726442833939,3.2078,2329.0,2328.7,5.7114]
[1726442834145,0.42931,2329.0,2328.8,0.42933]
[1726442834441,3.2078,2329.9,2329.1,0.42927]
[1726442834636,0.42925,2329.3,2329.0,0.42929]
[1726442834833,0.42928,2329.2,2328.7,5.7114]
[1726442835334,0.42927,2329.2,2328.9,0.42931]
[1726442835741,0.42929,2329.1,2328.8,0.42933]
[1726442836143,0.4293,2329.0,2328.7,6.14075]
[1726442836339,0.42933,2328.9,2328.7,2.3614]
[1726442836545,0.42932,2328.9,2328.7,2.3614]
[1726442836742,3.35,2328.9,2328.5,4.87257352]
[1726442836940,3.35,2328.9,2328.5,1.66477352]
[1726442836941,2.5173,2328.8,2328.5,1.66477352]
[1726442837134,0.42936,2328.7,2328.5,1.66477352]
[1726442838749,0.42936,2328.7,2328.4,2.09416352]
[1726442839247,0.42936,2328.7,2328.4,1.66477352]
[1726442839545,0.42936,2328.7,2328.4,5.30196352]
[1726442839751,0.42936,2328.7,2328.4,2.09416352]
[1726442839952,0.42939,2328.5,2328.4,1.66477352]
[1726442840140,3.63719,2328.5,2328.4,1.66477352]
[1726442841654,0.42939,2328.5,2328.4,1.66477352]
[1726442841861,0.42935,2328.7,2328.4,1.66477352]
[1726442842056,6.15445,2328.8,2328.5,0.42938]
[1726442842362,2.5173,2328.8,2328.6,0.42937]
[1726442842562,3.2078,2329.1,2328.5,5.8656]
[1726442842760,3.6371,2329.1,2328.5,5.8656]
[1726442843054,0.42931,2329.0,2328.5,5.8656]
[1726442843261,0.42931,2329.0,2328.7,0.42935]
[1726442843662,0.4293,2329.0,2328.6,0.42936]
[1726442844159,0.4293,2329.0,2328.7,0.42935]
[1726442844359,3.2078,2329.1,2328.6,0.42937]
[1726442844556,6.5578,2329.1,2328.5,2.94498]
[1726442844757,6.5578,2329.1,2328.5,2.5156]
[1726442844758,0.42936,2328.7,2328.5,2.5156]
[1726442845060,0.42937,2328.6,2328.5,2.5156]
[1726442845259,0.42936,2328.7,2328.4,0.4294]
[1726442845461,5.7427,2328.8,2328.4,2.4421]
[1726442846059,5.7427,2328.8,2328.3,3.98297352]
[1726442846060,0.42938,2328.6,2328.3,2.74762]
[1726442846458,0.42937,2328.6,2328.3,2.74762]
[1726442846765,0.42937,2328.6,2328.4,0.42941]
[1726442847150,5.7427,2328.8,2328.3,2.3182]
[1726442847151,0.4294,2328.5,2328.3,2.3182]
[1726442847658,0.4294,2328.5,2328.3,2.74763]
[1726442848169,3.35,2328.5,2328.1,1.66477352]
[1726442848372,3.35,2328.5,2328.0,2.22142712]
[1726442848373,0.42944,2328.3,2328.0,0.42948]
[1726442848665,6.5578,2328.5,2327.7,2.22142712]
[1726442848666,0.42945,2328.2,2327.8,1.66477352]
[1726442848866,0.42944,2328.3,2328.0,0.42948]
[1726442849262,0.42945,2328.2,2327.9,0.42949]
[1726442850362,1.07353,2328.4,2327.8,1.66477352]
[1726442850562,6.5578,2328.5,2327.6,10.25652712]
[1726442850563,3.35,2328.3,2327.7,1.66477352]
[1726442850869,6.5578,2328.5,2328.0,0.42947]
[1726442851061,3.35,2328.3,2327.7,1.66477352]
[1726442851270,3.35,2328.3,2327.8,0.42952]
[1726442851472,0.42949,2328.0,2327.8,0.42952]
[1726442851662,5.8821,2328.3,2327.8,0.42952]
[1726442851663,0.42948,2328.1,2327.8,0.42952]
[1726442851862,5.8821,2328.3,2327.8,0.42952]
[1726442851863,0.42948,2328.0,2327.8,0.42952]
[1726442852064,0.42948,2328.1,2327.8,0.42952]
[1726442852265,1.07362,2328.2,2327.6,10.12942352]
[1726442852467,1.07362,2328.2,2327.6,8.0351]
[1726442852468,4.28142,2328.2,2327.6,8.0351]
[1726442852764,0.42948,2328.0,2327.8,0.42952]
[1726442853159,1.07366,2328.2,2327.6,8.0351]
[1726442853357,3.2078,2328.2,2327.6,8.0351]
[1726442853560,3.2078,2328.2,2327.7,0.42953]
[1726442853771,0.42949,2328.0,2327.7,0.42953]
[1726442854368,0.42951,2327.9,2327.7,0.42953]
[1726442854959,0.42951,2327.9,2327.6,5.25684]
[1726442855269,3.2078,2328.2,2327.6,5.25684]
[1726442855270,0.42952,2327.8,2327.6,5.25684]
[1726442855666,0.42951,2327.9,2327.6,5.25684]
[1726442856070,3.2078,2328.2,2327.8,3.35]
[1726442856374,2.5321,2328.3,2327.8,3.35]
[1726442856375,2.96154,2328.3,2328.0,0.42948]
[1726442856761,2.96154,2328.3,2327.8,3.35]
[1726442856762,0.42945,2328.2,2327.9,0.42949]
[1726442857260,0.42947,2328.1,2327.8,0.42951]
[1726442857663,5.7399,2328.3,2327.7,0.42953]
[1726442857869,0.4295,2328.0,2327.7,0.42953]
[1726442859567,3.2078,2328.2,2327.6,4.8273]
[1726442859773,4.28146,2328.2,2327.6,5.25685]
[1726442859974,7.63146,2328.2,2327.6,4.8273]
[1726442860169,0.42949,2328.0,2327.7,0.42954]
[1726442860669,0.42947,2328.1,2327.6,8.1773]
[1726442860870,2.5321,2328.3,2327.8,3.35]
[1726442861079,2.96154,2328.3,2328.0,0.42948]
[1726442861260,0.42945,2328.2,2327.8,0.42951]
[1726442861569,0.42947,2328.1,2327.8,0.42951]
[1726442861776,0.42949,2328.0,2327.7,0.42953]
[1726442862073,0.42949,2328.0,2327.6,5.25685]
[1726442862978,0.42951,2327.9,2327.6,5.25685]
[1726442863165,0.4295,2328.0,2327.6,5.25685]
[1726442863671,12.53041,2328.3,2327.6,5.25685]
[1726442863869,0.42951,2327.9,2327.6,5.25685]
[1726442864371,0.4295,2328.0,2327.6,5.25685]
[1726442865267,0.4295,2328.0,2327.7,0.42954]
[1726442865774,0.4295,2327.9,2327.6,5.25685]
[1726442867273,12.53041,2328.3,2327.6,5.25685]
[1726442867274,0.42948,2328.1,2327.6,4.8273]
[1726442867480,10.16351,2328.3,2327.6,4.8273]
[1726442867675,0.4295,2328.0,2327.7,0.42953]
[1726442867881,0.42952,2327.9,2327.6,5.25685]
[1726442868180,0.42949,2328.0,2327.7,0.42954]
[1726442868376,0.4295,2327.9,2327.7,0.42954]
[1726442869074,0.4295,2327.9,2327.6,4.8273]
[1726442869075,9.0899,2328.3,2327.6,6.49207352]
[1726442869277,0.42948,2328.1,2327.8,0.42952]
[1726442869475,0.42946,2328.2,2327.9,0.42949]
[1726442869975,0.42947,2328.1,2327.8,0.42951]
[1726442872276,0.42947,2328.1,2327.9,0.4295]
[1726442872479,0.42947,2328.1,2327.6,9.84207352]
[1726442872676,0.42947,2328.1,2327.7,1.77096103]
[1726442872980,3.2078,2328.3,2328.0,0.42948]
[1726442873184,3.63724,2328.3,2328.0,0.42948]
[1726442873482,3.63724,2328.3,2328.1,0.42946]
[1726442873682,3.63724,2328.3,2328.0,0.42947]
[1726442874371,3.63724,2328.3,2328.1,0.42947]
[1726442874773,3.63724,2328.3,2327.9,1.66477352]
[1726442874774,3.2078,2328.3,2327.9,1.66477352]
[1726442874979,0.42948,2328.0,2327.8,1.66477352]
[1726442875775,0.42948,2328.0,2327.8,2.09429352]
[1726442876080,0.42948,2328.1,2327.8,2.09429352]
[1726442876679,0.42945,2328.2,2327.9,0.4295]
[1726442876874,3.2078,2328.3,2327.8,2.09428352]
[1726442876875,0.42947,2328.1,2327.8,2.09428352]
[1726442877585,3.2078,2328.3,2327.8,2.09428352]
[1726442877586,0.42948,2328.0,2327.8,2.09428352]
[1726442878186,0.42948,2328.1,2327.8,2.09428352]
[1726442878580,0.42948,2328.0,2327.8,2.09428352]
[1726442879585,0.42948,2328.0,2327.8,1.66477352]
[1726442880287,0.4295,2327.9,2327.8,1.66477352]
[1726442880586,0.4295,2327.9,2327.8,1.77181549]
[1726442880785,0.4295,2327.9,2327.7,1.66477352]
[1726442880993,0.42952,2327.8,2327.7,1.66477352]
[1726442881284,0.42952,2327.8,2327.7,1.77188886]
[1726442881583,0.42952,2327.8,2327.6,6.49207352]
[1726442881781,0.42952,2327.8,2327.7,1.7719058]
[1726442882289,0.42952,2327.8,2327.6,6.49207352]
[1726442882685,0.42954,2327.7,2327.6,4.04997352]
[1726442882883,0.42954,2327.7,2327.6,2.3852]
[1726442883192,1.07399,2327.4,2326.5,2.22142712]
[1726442883378,3.7797,2326.9,2326.5,0.42975]
[1726442883687,3.7797,2326.9,2326.3,4.7754]
[1726442883688,3.35,2326.9,2326.3,6.99682712]
[1726442883990,3.35,2326.9,2326.4,0.42978]
[1726442883991,0.42972,2326.8,2326.4,0.42978]
[1726442884181,2.4978,2326.8,2326.3,4.7754]
[1726442884489,0.42973,2326.7,2326.3,4.7754]
[1726442885184,0.42973,2326.7,2326.4,0.42977]
[1726442885392,2.92752,2326.8,2326.4,0.42977]
[1726442885585,0.42973,2326.7,2326.4,0.42977]
[1726442885889,0.42976,2326.6,2326.3,5.20519]
[1726442886384,0.42974,2326.7,2326.3,5.20519]
[1726442886891,0.42973,2326.7,2326.3,5.20519]
[1726442887082,0.42973,2326.7,2326.3,4.7754]
[1726442887279,3.35,2326.4,2325.8,2.22142712]
[1726442887482,3.35,2326.2,2325.8,2.4312]
[1726442887681,3.35,2326.2,2325.8,2.86108]
[1726442887885,0.42984,2326.1,2325.8,2.4312]
[1726442888476,0.42986,2326.0,2325.8,2.4312]
[1726442888890,3.2078,2326.1,2325.8,2.4312]
[1726442889093,9.0409,2326.6,2325.9,0.42986]
[1726442889386,3.77981,2326.3,2325.9,0.42986]
[1726442889888,3.77982,2326.2,2325.8,2.86108]
[1726442890590,3.35,2326.0,2325.8,2.4312]
[1726442890794,0.42982,2326.2,2325.8,2.86108]
[1726442890982,3.63761,2326.3,2325.8,2.86108]
[1726442891491,0.42982,2326.2,2325.8,2.86108]
[1726442892188,3.35,2326.1,2325.8,2.4312]
[1726442892393,3.35,2325.9,2325.1,3.2078]
[1726442892582,3.35,2325.6,2325.2,2.4204]
[1726442893088,0.42995,2325.5,2325.2,2.4204]
[1726442893288,3.35,2325.6,2325.2,2.4204]
[1726442893494,3.35,2325.9,2325.2,2.4204]
[1726442893789,3.35,2325.9,2325.6,0.42992]
[1726442893992,3.77988,2325.9,2325.5,0.42994]
[1726442894192,3.35,2325.7,2325.5,0.42994]
[1726442894392,3.35,2325.7,2325.6,0.42993]
[1726442894595,3.35,2325.7,2325.3,2.5017]
[1726442894794,5.7131,2326.0,2325.3,2.5017]
[1726442894795,3.63766,2326.0,2325.6,0.42993]
[1726442894998,3.2078,2326.6,2325.8,3.35]
[1726442895202,3.2078,2326.6,2326.1,3.2078]
[1726442895398,3.2078,2326.6,2325.0,2.56678389]
[1726442895399,1.07496,2325.3,2325.0,2.56678389]
[1726442895695,3.2078,2325.9,2325.7,0.4299]
[1726442895890,0.42985,2326.1,2325.1,4.619]
[1726442896085,0.42985,2326.1,2325.5,0.42993]
[1726442896284,3.2078,2326.0,2325.1,4.619]
[1726442896688,3.2078,2326.0,2325.5,0.42994]
[1726442896893,3.2078,2326.0,2325.6,0.42992]
[1726442897097,2.3181,2326.2,2325.7,0.42989]
[1726442897397,2.3181,2326.2,2325.8,2.92309]
[1726442897694,2.3181,2326.2,2325.9,0.42986]
[1726442897910,2.3181,2326.2,2326.0,0.42985]
[1726442898202,3.2078,2326.3,2326.0,0.42984]
[1726442898789,3.2078,2326.3,2325.8,2.4932]
[1726442898790,6.09133,2326.7,2326.2,0.42982]
[1726442898995,5.6616,2326.7,2326.1,2.4567]
[1726442899500,5.6616,2326.7,2326.2,0.42982]
[1726442900496,6.09132,2326.7,2326.2,0.42982]
[1726442900703,5.6616,2326.7,2326.3,0.4298]
[1726442901197,5.6616,2326.7,2326.1,2.4567]
[1726442901198,6.09132,2326.7,2326.2,0.42981]
[1726442901400,5.6616,2326.7,2326.2,0.42981]
[1726442901901,5.6616,2326.7,2326.3,0.42979]
[1726442902099,2.5097,2327.0,2326.4,2.4812]
[1726442902100,3.2078,2327.0,2326.4,2.4812]
[1726442902296,4.13,2327.4,2326.4,2.4812]
[1726442902297,0.42966,2327.1,2326.5,2.2975]
[1726442902598,2.4855,2327.2,2327.0,0.42967]
[1726442902799,2.4855,2327.2,2326.9,0.42967]
[1726442902990,3.2078,2327.3,2327.0,0.42966]
[1726442903192,3.2078,2327.3,2327.1,0.42965]
[1726442903603,3.2078,2327.3,2327.2,0.42963]
[1726442904099,2.65389,2328.0,2327.4,0.42959]
[1726442904100,5.95402,2327.9,2327.4,0.42959]
[1726442904403,5.95402,2327.9,2327.4,0.42958]
[1726442904404,5.954,2327.9,2327.4,0.42958]
[1726442904700,5.5245,2327.9,2327.3,2.3955]
[1726442904892,5.5245,2327.9,2327.6,0.42955]
[1726442905196,3.2078,2327.9,2327.7,0.42953]
[1726442905409,7.76724,2328.3,2327.5,3.2078]
[1726442905590,0.42946,2328.2,2327.7,0.42953]
[1726442905792,0.42946,2328.2,2327.6,2.4432]
[1726442905793,7.3378,2328.3,2327.6,2.87275]
[1726442905997,7.3378,2328.3,2327.7,0.42954]
[1726442906202,0.42946,2328.2,2327.7,0.42954]
[1726442906588,0.42946,2328.2,2327.6,2.87275]
[1726442906899,0.42946,2328.2,2327.7,0.42954]
[1726442907595,7.3378,2328.3,2327.6,2.4432]
[1726442907800,7.76724,2328.3,2327.8,0.42951]
[1726442908700,7.76724,2328.3,2327.9,0.42949]
[1726442908902,3.2078,2328.3,2327.7,2.2894]
[1726442909403,3.2078,2328.3,2327.9,0.42949]
[1726442909604,3.63723,2328.3,2327.9,0.42949]
[1726442910799,3.63723,2328.3,2327.8,2.92771]
[1726442911191,3.63723,2328.3,2327.8,2.4982]
[1726442911506,3.2078,2328.3,2327.8,2.4982]
[1726442911701,3.2078,2328.3,2327.9,0.4295]
[1726442912208,3.63723,2328.3,2327.9,0.4295]
[1726442912497,3.63724,2328.3,2327.9,0.4295]
[1726442912699,3.2078,2328.3,2327.8,5.706]
[1726442912909,3.2078,2328.3,2328.1,0.42945]
[1726442913302,3.2078,2328.3,2328.2,2.3363]
[1726442913602,3.2078,2328.3,2328.2,2.76575]
[1726442913999,0.42936,2328.7,2328.3,0.42943]
[1726442914206,2.4443,2328.7,2328.2,2.3363]
[1726442914411,2.4443,2328.7,2328.5,0.42938]
[1726442914702,2.4443,2328.7,2328.4,0.4294]
[1726442915304,2.4443,2328.7,2328.5,0.42939]
[1726442915803,2.4443,2328.7,2328.3,2.93451]
[1726442915804,2.87367,2328.7,2328.3,2.93451]
[1726442916002,2.4443,2328.7,2328.3,2.5051]
[1726442916208,2.4443,2328.7,2328.4,0.42941]
[1726442916515,2.4443,2328.7,2327.7,2.2894]
[1726442916516,7.3378,2328.5,2327.7,2.2894]
[1726442916704,6.7387,2328.7,2327.4,2.4369]
[1726442916705,0.42947,2328.1,2327.4,2.4369]
[1726442917008,2.7996,2328.0,2327.4,2.4369]
[1726442917311,2.7996,2328.0,2327.6,0.42955]
[1726442917811,0.4295,2327.9,2327.5,0.42957]
[1726442918309,2.79959,2328.0,2327.6,0.42956]
[1726442918511,0.4295,2327.9,2327.5,0.42956]
[1726442918901,2.79959,2328.0,2327.6,0.42955]
[1726442919299,2.3701,2328.0,2327.7,0.42953]
[1726442920414,2.3701,2328.0,2327.8,0.42951]
[1726442920608,2.3701,2328.0,2327.7,0.42953]
[1726442921806,2.3701,2328.0,2327.4,5.6447]
[1726442922004,2.3701,2328.0,2327.7,0.42953]
[1726442922200,2.3701,2328.0,2327.4,5.6447]
[1726442922408,3.2078,2328.2,2328.0,0.42947]
[1726442922607,0.42942,2328.4,2328.0,0.42947]
[1726442922900,2.3244,2328.5,2327.7,3.2078]
[1726442923107,2.3244,2328.5,2328.2,0.42944]
[1726442924400,2.3244,2328.5,2328.3,0.42942]
[1726442924809,2.3244,2328.5,2328.4,0.42941]
[1726442925002,0.42934,2328.8,2328.3,0.42942]
[1726442925208,2.85424,2328.8,2328.0,3.2078]
[1726442925417,2.4249,2328.8,2328.4,0.4294]
[1726442925604,2.4249,2328.8,2328.5,0.699]
[1726442925806,3.2078,2329.0,2328.7,0.42935]
[1726442926002,3.2078,2329.0,2328.5,0.699]
[1726442926206,2.4249,2328.9,2328.5,0.699]
[1726442926412,2.4249,2328.9,2328.6,0.42936]
[1726442926607,2.4249,2328.9,2328.5,0.699]
[1726442926912,2.4249,2328.9,2328.6,2.84117]
[1726442927709,2.4249,2328.9,2328.6,2.4118]
[1726442929015,2.4249,2328.9,2328.6,2.84117]
[1726442929208,2.4249,2328.9,2328.6,3.54017]
[1726442930212,2.4249,2328.9,2328.7,0.42935]
[1726442930407,2.4249,2328.9,2328.6,3.1108]
[1726442930710,2.4249,2328.9,2328.6,3.54016]
[1726442931909,2.4249,2328.9,2328.6,3.1108]
[1726442932107,2.4249,2328.9,2328.6,3.54017]
[1726442933913,2.4249,2328.9,2328.6,3.1108]
[1726442934114,2.85422,2328.9,2328.6,0.699]
[1726442934420,2.4249,2328.9,2328.6,0.699]
[1726442934614,0.42934,2328.8,2328.6,0.699]
[1726442934813,5.07742,2328.9,2328.6,0.699]
[1726442935009,4.6481,2328.9,2328.6,0.699]
[1726442935212,5.07742,2328.9,2328.6,0.699]
[1726442935407,0.42933,2328.9,2328.6,0.699]
[1726442935619,0.4293,2329.0,2328.6,0.699]
[1726442935814,3.63709,2329.1,2328.6,0.699]
[1726442936124,0.4293,2329.0,2328.6,1.12836]
[1726442936622,3.63709,2329.1,2328.7,0.42935]
[1726442938120,3.63709,2329.1,2328.7,0.42934]
[1726442938516,3.2078,2329.1,2328.8,0.42932]
[1726442938716,3.2078,2329.1,2328.8,0.699]
[1726442938717,3.63709,2329.1,2328.8,0.699]
[1726442939729,3.2078,2329.1,2328.8,1.12833]
[1726442940425,3.2078,2329.1,2328.8,0.699]
[1726442940612,2.88417,2329.2,2328.8,0.699]
[1726442940613,2.4549,2329.2,2328.9,0.42931]
[1726442941422,2.88417,2329.2,2328.9,0.42931]
[1726442942019,2.4549,2329.2,2328.9,0.42931]
[1726442942219,2.88417,2329.2,2328.9,0.42931]
[1726442942418,2.4549,2329.2,2329.0,0.4293]
[1726442942626,2.4549,2329.2,2328.8,0.699]
[1726442942831,2.4549,2329.2,2328.9,5.46791]
[1726442943224,3.2078,2329.4,2329.3,0.42924]
[1726442943420,3.2078,2329.4,2329.2,0.42925]
[1726442943729,3.2078,2329.4,2329.2,0.42926]
[1726442944031,2.5178,2329.6,2329.3,0.42924]
[1726442944334,2.5178,2329.6,2329.3,0.42923]
[1726442944823,2.947,2329.6,2329.2,0.42925]
[1726442945020,6.6478,2329.6,2329.0,5.6422]
[1726442945221,0.42921,2329.5,2329.2,0.42925]
[1726442945429,7.077,2329.6,2329.0,5.6422]
[1726442945934,2.5178,2329.6,2329.4,0.42922]
[1726442946422,2.5178,2329.6,2329.0,5.6422]
[1726442946630,2.5178,2329.6,2329.5,0.42921]
[1726442946930,3.2078,2329.8,2329.2,3.2078]
[1726442947126,3.2078,2329.8,2329.6,0.42918]
[1726442947428,2.71823,2330.0,2329.6,0.42918]
[1726442947626,2.2891,2330.0,2329.2,3.2078]
[1726442947830,2.2891,2330.0,2329.3,1.07312]
[1726442948028,2.2891,2330.0,2329.8,0.42915]
[1726442948925,2.2891,2330.0,2329.5,2.3689]
[1726442949126,4.13,2330.4,2329.6,3.0238]
[1726442949332,2.5368,2330.3,2330.0,0.42911]
[1726442949633,2.5368,2330.3,2330.1,0.42909]
[1726442950221,2.5368,2330.3,2329.8,3.2078]
[1726442950422,2.5368,2330.3,2330.1,0.4291]
[1726442950627,2.5368,2330.3,2330.0,0.4291]
[1726442951219,2.5368,2330.3,2330.0,0.42912]
[1726442951421,2.5368,2330.3,2330.0,0.42911]
[1726442951621,2.5368,2330.3,2330.1,0.42909]
[1726442952432,2.5368,2330.3,2330.1,0.4291]
[1726442952625,2.5368,2330.3,2330.0,0.42911]
[1726442952931,5.7446,2330.3,2330.0,0.42911]
[1726442953127,5.7446,2330.3,2329.9,2.4735]
[1726442953326,6.17366,2330.3,2329.9,2.90262]
[1726442953527,5.7446,2330.3,2330.0,0.42911]
[1726442953729,5.7446,2330.3,2329.9,2.90262]
[1726442953933,5.7446,2330.3,2330.0,0.42911]
[1726442954326,5.7446,2330.3,2329.9,2.90262]
[1726442955136,6.17366,2330.3,2329.9,2.90262]
[1726442955434,2.96587,2330.3,2329.9,2.90263]
[1726442955623,2.5368,2330.3,2329.9,2.4735]
[1726442955830,3.2078,2330.0,2329.3,1.6732327]
[1726442956035,3.77921,2329.5,2329.3,1.6732327]
[1726442956533,3.35,2329.5,2329.3,1.6732327]
[1726442956734,3.35,2329.5,2329.1,0.42927]
[1726442957124,0.42932,2328.9,2328.8,3.2078]
[1726442957319,3.35,2328.9,2328.7,1.11549429]
[1726442957924,0.42931,2329.0,2328.7,1.11549429]
[1726442958134,2.4725,2329.1,2328.3,4.5992]
[1726442958135,2.90179,2329.1,2328.3,4.5992]
[1726442958334,0.42931,2329.0,2328.5,0.42938]
[1726442958639,2.4725,2329.1,2328.6,0.42937]
[1726442958832,2.4725,2329.1,2328.6,0.42936]
[1726442959033,2.4725,2329.1,2328.7,0.42935]
[1726442959333,2.4725,2329.1,2328.3,7.807]
[1726442959334,2.4725,2329.1,2328.8,0.42933]
[1726442959533,2.4725,2329.1,2328.7,0.42934]
[1726442959832,2.4725,2329.1,2328.6,0.42936]
[1726442960234,2.4725,2329.1,2328.7,0.42935]
[1726442960436,2.4725,2329.1,2328.3,7.807]
[1726442960933,2.4725,2329.1,2328.7,0.42934]
[1726442961129,2.4725,2329.1,2328.8,2.3873]
[1726442962130,2.4725,2329.1,2328.8,2.81663]
[1726442962334,2.4725,2329.1,2328.9,2.494]
[1726442964738,4.12,2329.4,2328.9,2.494]
[1726442964929,2.81845,2329.3,2328.9,2.494]
[1726442965130,2.3892,2329.3,2328.9,2.494]
[1726442965338,2.3892,2329.3,2329.0,0.42929]
[1726442965725,2.3892,2329.3,2329.1,0.42928]
[1726442966133,2.3892,2329.3,2329.0,0.42929]
[1726442966332,2.3892,2329.3,2328.9,2.494]
[1726442966333,2.3892,2329.3,2329.1,0.42928]
[1726442967127,2.3892,2329.3,2328.9,2.494]
[1726442967128,2.3892,2329.3,2329.0,0.42929]
[1726442967328,2.3892,2329.3,2328.9,2.494]
[1726442967943,2.3892,2329.3,2329.1,0.42927]
[1726442968734,2.3892,2329.3,2329.0,0.42929]
[1726442969543,2.3892,2329.3,2329.1,0.42928]
[1726442969839,2.3892,2329.3,2329.0,0.42929]
[1726442970244,2.3892,2329.3,2329.1,0.42928]
[1726442970635,2.3892,2329.3,2329.0,0.42929]
[1726442971738,2.3892,2329.3,2329.0,0.4293]
[1726442972035,2.3892,2329.3,2328.9,3.60949429]
[1726442972437,7.9362,2329.6,2328.9,3.60949429]
[1726442972949,0.42921,2329.5,2329.1,0.42927]
[1726442973745,6.1443,2329.6,2329.2,0.42926]
[1726442973942,6.1443,2329.6,2329.3,2.4482]
[1726442974543,5.7151,2329.6,2329.3,2.87744]
[1726442974744,6.14429,2329.6,2329.3,2.4482]
[1726442975348,5.7151,2329.6,2329.3,2.4482]
[1726442975649,5.7151,2329.6,2329.3,2.87744]
[1726442977353,5.7151,2329.6,2329.3,2.4482]
[1726442977644,5.7151,2329.6,2329.1,1.11549429]
[1726442977853,6.1443,2329.6,2329.1,1.54476429]
[1726442978043,0.42923,2329.5,2329.1,1.11549429]
[1726442978347,0.42923,2329.5,2329.1,1.54477429]
[1726442978740,2.9365,2329.6,2329.1,1.54477429]
[1726442979553,6.1443,2329.6,2329.1,1.54477429]
[1726442979941,9.4943,2329.6,2329.1,1.54477429]
[1726442981354,0.42922,2329.5,2329.1,1.11549429]
[1726442981751,0.42922,2329.5,2329.1,0.42928]
[1726442982151,0.42922,2329.5,2329.0,4.04097429]
[1726442982453,0.42924,2329.4,2329.0,1.54479429]
[1726442983450,0.42923,2329.4,2329.0,1.54479429]
[1726442984351,0.42923,2329.4,2329.1,1.11549429]
[1726442986550,2.65112,2329.5,2329.1,1.54477429]
[1726442986856,2.65111,2329.5,2329.1,1.54477429]
[1726442987054,0.42923,2329.4,2329.1,1.54477429]
[1726442987252,0.42923,2329.4,2328.9,4.1672327]
[1726442987253,2.2219,2329.5,2329.0,1.54479429]
[1726442987559,2.65112,2329.5,2329.1,1.54477429]
[1726442987961,0.42923,2329.4,2329.1,1.54477429]
[1726442988256,2.65112,2329.5,2329.1,1.54477429]
[1726442988864,0.42923,2329.4,2329.1,1.54477429]
[1726442989156,2.65112,2329.5,2329.1,1.54477429]
[1726442990556,0.42923,2329.4,2329.1,1.11549429]
[1726442991460,2.65112,2329.5,2329.1,1.54477429]
[1726442991859,2.65112,2329.5,2329.1,1.11549429]
[1726442991860,0.42924,2329.4,2329.1,1.11549429]
[1726442992162,3.35,2329.4,2329.1,1.11549429]
[1726442992359,3.77924,2329.4,2329.1,1.11549429]
[1726442993157,3.77924,2329.4,2329.1,1.54477429]
[1726442993361,3.35,2329.4,2329.2,0.42926]
[1726442993551,3.35,2329.4,2329.1,1.11549429]
[1726442993552,3.77924,2329.4,2329.1,1.54477429]
[1726442994156,1.07321,2329.1,2328.8,1.11549429]
[1726442994359,0.42935,2328.8,2328.6,1.11549429]
[1726442994559,5.8719,2329.0,2328.5,1.11549429]
[1726442994756,3.35,2328.7,2328.5,1.11549429]
[1726442994959,3.77936,2328.7,2328.5,1.11549429]
[1726442995259,3.77936,2328.7,2328.4,1.54489429]
[1726442995664,3.35,2328.7,2328.5,0.42939]
[1726442995962,3.77935,2328.7,2328.5,1.11549429]
[1726442996262,3.35,2328.7,2328.5,1.11549429]
[1726442996460,3.35,2328.7,2328.4,1.54489429]
[1726442996761,3.35,2328.7,2328.5,1.11549429]
[1726442998659,6.5578,2328.9,2328.5,1.54488429]
[1726442998858,6.98712,2328.9,2328.5,1.54488429]
[1726442999264,6.98712,2328.9,2328.6,1.11549429]
[1726443000360,3.35,2328.7,2328.6,1.11549429]
[1726443000558,3.35,2328.7,2328.2,3.46789429]
[1726443000764,3.77943,2328.3,2328.2,3.46789429]
[1726443000965,3.2078,2328.5,2328.2,2.3524]
[1726443001167,3.35,2328.8,2328.4,1.54489429]
[1726443001363,3.35,2328.8,2328.5,1.11549429]
[1726443001863,0.42936,2328.7,2328.5,1.11549429]
[1726443002164,3.35,2328.6,2328.5,1.11549429]
[1726443002867,3.77937,2328.6,2328.5,1.11549429]
[1726443003060,3.77937,2328.6,2328.4,1.11549429]
[1726443003061,0.42939,2328.5,2328.4,1.11549429]
[1726443003370,6.1204,2328.5,2328.2,3.46789429]
[1726443003664,0.42941,2328.4,2328.2,3.46789429]
[1726443004460,11.28243,2328.3,2328.2,1.11549429]
[1726443004669,0.42945,2328.2,2327.9,1.11549429]
[1726443004865,0.42952,2327.8,2327.7,1.11549429]
[1726443005164,3.77952,2327.8,2327.6,3.59239429]
[1726443005361,3.77952,2327.8,2327.6,2.4769]
[1726443005560,3.35,2327.8,2327.6,2.4769]